bitfinex-derivatives/quotes_SOLF0:USTF0_20241002
["timestamp","ask_amount","ask_price","bid_price","bid_amount"]
[1727856350820,8.45502,147.77,147.71,11.7154]
[1727856351020,8.45502,147.77,147.72,8.33]
[1727856351420,3.3844,147.76,147.73,3.385]
[1727856351623,8.45502,147.77,147.73,3.385]
[1727856352017,3.3847,147.75,147.72,11.7151]
[1727856353029,8.45502,147.77,147.72,11.7151]
[1727856353231,3.3848,147.74,147.72,11.7151]
[1727856353727,8.33,147.75,147.7,11.7156]
[1727856354126,3.3851,147.73,147.7,11.7156]
[1727856354323,3.3851,147.73,147.71,3.3854]
[1727856354625,3.3851,147.73,147.71,11.7154]
[1727856355723,3.3847,147.75,147.72,3.3851]
[1727856356525,3.3848,147.74,147.72,3.3851]
[1727856356729,8.33,147.75,147.71,8.33]
[1727856357935,8.33,147.76,147.71,8.33]
[1727856358126,8.33,147.76,147.72,8.33]
[1727856358434,3.3846,147.75,147.72,11.7151]
[1727856361030,3.3848,147.74,147.72,11.7151]
[1727856361329,0.12502,147.77,147.65,0.12502]
[1727856361330,8.33,147.73,147.68,8.33]
[1727856361533,3.3855,147.71,147.68,8.33]
[1727856361734,3.3855,147.71,147.66,3.3864]
[1727856361935,3.3855,147.71,147.65,0.12502]
[1727856361936,3.3855,147.71,147.68,8.33]
[1727856362329,3.3855,147.71,147.69,8.33]
[1727856362532,0.12502,147.77,147.7,8.33]
[1727856362737,8.45502,147.77,147.72,8.33]
[1727856363037,3.3845,147.76,147.74,8.33]
[1727856363329,0.12502,147.77,147.74,8.33]
[1727856363536,3.3846,147.75,147.74,8.33]
[1727856365431,3.3845,147.76,147.74,8.33]
[1727856365828,0.12502,147.77,147.74,8.33]
[1727856366029,0.12502,147.77,147.76,8.33]
[1727856366632,0.12502,147.77,147.76,11.7143]
[1727856366839,3.3833,147.81,147.76,8.33]
[1727856367137,3.3833,147.81,147.8,8.33]
[1727856368830,0.12502,147.83,147.8,8.33]
[1727856369637,0.12502,147.83,147.78,3.3838]
[1727856369837,3.3834,147.81,147.78,3.3838]
[1727856370037,0.12502,147.83,147.77,12.99]
[1727856370234,0.12502,147.83,147.75,12.99]
[1727856370436,3.3838,147.79,147.75,12.99]
[1727856371143,3.3838,147.79,147.76,3.3842]
[1727856371447,0.12502,147.83,147.75,12.99]
[1727856371738,0.12502,147.83,147.77,3.384]
[1727856372040,3.3834,147.81,147.77,3.384]
[1727856372232,0.12502,147.83,147.77,3.384]
[1727856372938,0.12502,147.83,147.75,12.99]
[1727856373643,3.3833,147.81,147.77,3.3839]
[1727856373838,0.12502,147.83,147.75,12.99]
[1727856374038,0.12502,147.83,147.77,12.99]
[1727856374246,3.383,147.82,147.79,3.3835]
[1727856374942,0.12502,147.83,147.78,1.3091]
[1727856375145,3.50782,147.83,147.8,3.3833]
[1727856375332,0.12502,147.83,147.78,1.3091]
[1727856375536,3.3832,147.81,147.79,3.3835]
[1727856375737,3.3832,147.81,147.78,1.3091]
[1727856375935,0.12502,147.83,147.78,1.3091]
[1727856376347,3.3833,147.81,147.78,4.6929]
[1727856378641,3.3833,147.81,147.79,3.3836]
[1727856378842,3.383,147.82,147.78,1.3091]
[1727856379146,3.383,147.82,147.79,3.3836]
[1727856380646,3.383,147.82,147.78,1.3091]
[1727856380848,3.383,147.82,147.8,3.3834]
[1727856381450,3.383,147.82,147.79,3.3835]
[1727856383048,0.12502,147.83,147.78,1.3091]
[1727856383252,3.50772,147.83,147.79,12.99]
[1727856383554,0.12502,147.83,147.79,12.99]
[1727856384153,0.12502,147.83,147.81,3.3831]
[1727856384754,3.50782,147.83,147.81,3.3831]
[1727856384957,0.12502,147.83,147.8,3.3833]
[1727856385848,3.3831,147.82,147.8,3.3833]
[1727856388757,3.3833,147.81,147.78,4.6928]
[1727856388958,0.12502,147.83,147.78,4.6928]
[1727856389356,3.3834,147.8,147.78,4.6928]
[1727856389552,3.3834,147.8,147.79,8.32]
[1727856392557,3.3834,147.8,147.74,3.3846]
[1727856392558,3.3843,147.76,147.74,3.3846]
[1727856392862,8.32,147.8,147.75,8.32]
[1727856393262,3.3842,147.77,147.75,11.7045]
[1727856396364,0.12502,147.83,147.76,8.32]
[1727856396571,0.12502,147.83,147.79,8.32]
[1727856396865,8.44502,147.83,147.78,8.32]
[1727856397063,3.3837,147.79,147.76,11.7042]
[1727856397370,8.32,147.8,147.75,8.32]
[1727856397562,3.3843,147.77,147.75,8.32]
[1727856397763,8.32,147.8,147.75,8.32]
[1727856398167,3.3843,147.77,147.75,8.32]
[1727856398466,8.32,147.8,147.75,8.32]
[1727856398666,3.3843,147.77,147.75,8.32]
[1727856398867,8.32,147.8,147.75,8.32]
[1727856399571,3.3841,147.78,147.75,3.3845]
[1727856400271,1.349,147.81,147.75,3.3845]
[1727856400272,3.3841,147.77,147.75,3.3845]
[1727856401170,3.3841,147.77,147.74,13.0]
[1727856401364,3.3841,147.77,147.74,16.3847]
[1727856402473,3.3841,147.77,147.74,13.0]
[1727856402770,3.3841,147.77,147.75,3.3845]
[1727856406176,3.384,147.78,147.76,3.3843]
[1727856407064,3.3838,147.79,147.77,3.384]
[1727856407471,1.349,147.81,147.74,13.0]
[1727856407869,19.89062,147.83,147.76,13.0]
[1727856407870,0.12502,147.83,147.76,13.0]
[1727856408275,0.12502,147.83,147.78,13.0]
[1727856408871,3.3831,147.82,147.79,3.3834]
[1727856409875,0.12502,147.83,147.78,13.0]
[1727856410075,0.12502,147.83,147.8,3.3832]
[1727856410076,3.50782,147.83,147.8,3.3832]
[1727856410973,0.12502,147.83,147.78,13.0]
[1727856411173,3.3832,147.81,147.78,13.0]
[1727856411580,3.3832,147.81,147.78,16.3837]
[1727856413268,0.12502,147.83,147.78,13.0]
[1727856413269,3.3835,147.8,147.78,13.0]
[1727856413579,3.3835,147.8,147.77,3.3839]
[1727856413784,0.12502,147.83,147.76,13.0]
[1727856413987,3.3838,147.79,147.77,3.3841]
[1727856414177,0.12502,147.83,147.76,13.0]
[1727856414878,3.3832,147.81,147.76,16.3842]
[1727856415075,0.12502,147.83,147.76,16.3842]
[1727856415578,3.3838,147.79,147.76,16.3842]
[1727856416487,0.12502,147.83,147.76,13.0]
[1727856416677,0.12502,147.83,147.77,3.3839]
[1727856417487,0.12502,147.83,147.76,13.0]
[1727856417689,3.3838,147.79,147.76,16.3842]
[1727856418783,3.3839,147.78,147.76,16.3842]
[1727856419479,3.3846,147.75,147.73,3.3849]
[1727856419679,8.32,147.76,147.72,1.3093]
[1727856420385,3.3846,147.75,147.72,4.6944]
[1727856420574,8.32,147.76,147.72,1.3093]
[1727856420774,3.385,147.73,147.71,0.12502]
[1727856421388,3.385,147.73,147.71,3.51042]
[1727856421885,8.32,147.75,147.71,3.51042]
[1727856422073,3.3849,147.74,147.71,3.51042]
[1727856424684,3.3852,147.72,147.71,0.12502]
[1727856424989,16.39026167,147.78,147.71,0.12502]
[1727856425185,3.3851,147.73,147.71,3.51052]
[1727856425586,3.3851,147.73,147.71,0.12502]
[1727856425883,16.39026167,147.78,147.71,0.12502]
[1727856426080,3.3852,147.72,147.71,0.12502]
[1727856426390,16.39026167,147.78,147.71,0.12502]
[1727856426689,3.3852,147.73,147.71,0.12502]
[1727856427187,16.39026167,147.78,147.71,0.12502]
[1727856428187,16.39026167,147.78,147.72,3.3852]
[1727856428491,16.39026167,147.78,147.71,0.12502]
[1727856428791,3.3852,147.72,147.71,0.12502]
[1727856430193,16.39026167,147.78,147.71,0.12502]
[1727856431695,3.3851,147.73,147.71,0.12502]
[1727856433192,16.39026167,147.78,147.71,0.12502]
[1727856433394,3.3852,147.72,147.71,0.12502]
[1727856434399,16.39026167,147.78,147.71,3.51032]
[1727856434992,3.3849,147.74,147.72,3.3852]
[1727856435798,3.3849,147.74,147.71,3.51032]
[1727856436398,3.3849,147.74,147.72,3.3851]
[1727856437999,16.39026167,147.78,147.72,3.3851]
[1727856438197,3.3848,147.74,147.72,3.3851]
[1727856438994,16.39026167,147.78,147.72,3.3851]
[1727856439197,3.3847,147.75,147.72,3.3851]
[1727856439496,16.39026167,147.78,147.71,3.51042]
[1727856439700,3.3852,147.73,147.71,3.51042]
[1727856439902,3.3852,147.73,147.71,0.12502]
[1727856440095,13.01,147.76,147.71,0.12502]
[1727856440297,3.3852,147.72,147.71,0.12502]
[1727856442498,13.01,147.76,147.71,0.12502]
[1727856442702,73.1,147.82,147.71,0.12502]
[1727856443008,3.44628596,147.8,147.71,0.12502]
[1727856443198,3.3841,147.78,147.75,3.3845]
[1727856443500,3.3841,147.78,147.75,11.7045]
[1727856445597,3.3841,147.78,147.75,8.32]
[1727856445793,8.32,147.8,147.76,3.3843]
[1727856445998,3.3837,147.79,147.76,3.3843]
[1727856446601,8.32,147.8,147.76,3.3843]
[1727856446808,3.3839,147.78,147.76,3.3843]
[1727856447504,3.3839,147.78,147.75,8.32]
[1727856447505,3.3839,147.78,147.75,11.7044]
[1727856448612,8.32,147.77,147.72,8.32]
[1727856448812,8.32,147.77,147.73,3.3849]
[1727856449106,8.32,147.75,147.71,1.51682]
[1727856449310,8.32,147.74,147.71,0.12502]
[1727856449503,8.32,147.72,147.71,0.12502]
[1727856449705,11.7052,147.72,147.71,0.12502]
[1727856451712,3.3852,147.72,147.71,0.12502]
[1727856456413,2.596,147.75,147.71,0.12502]
[1727856456414,3.3851,147.73,147.71,0.12502]
[1727856458218,3.3851,147.73,147.71,3.51042]
[1727856458513,3.3849,147.74,147.71,0.12502]
[1727856458715,2.596,147.75,147.71,3.51042]
[1727856459111,3.3849,147.74,147.71,3.51042]
[1727856459411,2.596,147.75,147.71,3.51042]
[1727856459614,3.385,147.74,147.71,3.51042]
[1727856460509,3.385,147.73,147.71,3.51042]
[1727856462617,3.385,147.73,147.71,0.12502]
[1727856463412,3.3852,147.72,147.71,0.12502]
[1727856471614,11.7052,147.72,147.71,0.12502]
[1727856479725,3.3852,147.72,147.71,0.12502]
[1727856481436,11.7052,147.72,147.71,0.12502]
[1727856485645,3.3865,147.67,147.65,0.12502]
[1727856486651,8.32,147.66,147.65,0.12502]
[1727856486847,11.7066,147.66,147.65,0.12502]
[1727856487646,3.3866,147.66,147.65,0.12502]
[1727856487850,11.7066,147.66,147.65,0.12502]
[1727856489644,3.3866,147.66,147.65,0.12502]
[1727856490255,11.7066,147.66,147.65,0.12502]
[1727856493251,2.6582,147.7,147.65,0.12502]
[1727856493445,8.32,147.69,147.65,0.12502]
[1727856493647,8.32,147.67,147.65,0.12502]
[1727856494162,3.3866,147.66,147.65,0.12502]
[1727856495857,11.7066,147.66,147.65,0.12502]
[1727856499766,11.7066,147.66,147.59,1.49382]
[1727856499767,3.388,147.6,147.59,1.49382]
[1727856500465,11.7078,147.61,147.59,1.49382]
[1727856500759,8.32,147.64,147.6,3.3879]
[1727856500955,3.44499966,147.66,147.61,8.32]
[1727856501152,8.32,147.65,147.61,8.32]
[1727856501868,3.3873,147.63,147.61,8.32]
[1727856502358,3.3876,147.62,147.6,3.3879]
[1727856502756,3.3876,147.62,147.59,1.49382]
[1727856503052,3.3876,147.62,147.59,13.20192]
[1727856505655,3.3876,147.62,147.6,3.388]
[1727856505856,8.32,147.64,147.6,11.708]
[1727856506057,3.3872,147.64,147.61,8.32]
[1727856506253,3.3872,147.64,147.62,3.3875]
[1727856506860,3.3872,147.64,147.61,8.32]
[1727856507059,3.3872,147.64,147.61,11.7077]
[1727856510372,3.3872,147.64,147.59,1.49382]
[1727856510373,8.32,147.63,147.59,1.49382]
[1727856510572,8.32,147.62,147.59,1.49382]
[1727856511170,3.3879,147.61,147.59,1.49382]
[1727856513663,8.32,147.63,147.59,1.49382]
[1727856513863,3.388,147.6,147.59,1.49382]
[1727856514162,8.32,147.63,147.59,1.49382]
[1727856514365,3.3879,147.61,147.59,1.49382]
[1727856514966,3.3879,147.61,147.59,4.88202]
[1727856517871,3.389,147.56,147.53,0.12502]
[1727856518074,8.32,147.57,147.53,0.12502]
[1727856519075,3.3893,147.55,147.53,0.12502]
[1727856520375,3.389,147.56,147.53,8.44502]
[1727856521471,3.389,147.56,147.54,3.3893]
[1727856521672,3.389,147.56,147.53,8.44502]
[1727856522280,3.389,147.56,147.53,11.83452]
[1727856522574,3.3894,147.54,147.53,0.12502]
[1727856523475,11.7094,147.54,147.53,0.12502]
[1727856527471,11.7094,147.54,147.47,8.44502]
[1727856527472,3.3906,147.49,147.47,0.12502]
[1727856531279,8.32,147.5,147.47,0.12502]
[1727856531474,8.32,147.5,147.47,3.51582]
[1727856531670,8.32,147.48,147.43,0.12518]
[1727856531872,8.32,147.44,147.43,0.12518]
[1727856532566,11.7117,147.44,147.43,0.12518]
[1727856534279,11.7117,147.44,147.41,0.12502]
[1727856534280,3.3921,147.42,147.41,0.12502]
[1727856534468,11.7121,147.42,147.41,0.12502]
[1727856540081,3.3921,147.42,147.41,0.12502]
[1727856540284,11.7121,147.42,147.41,0.12502]
[1727856540682,3.3921,147.42,147.41,0.12502]
[1727856540984,11.7121,147.42,147.41,0.12502]
[1727856541380,1.2597,147.45,147.41,0.12502]
[1727856541577,8.32,147.42,147.41,0.12502]
[1727856543188,11.7121,147.42,147.41,0.12502]
[1727856549187,8.32,147.42,147.35,0.12502]
[1727856549395,1.2597,147.45,147.35,0.12502]
[1727856549396,8.32,147.37,147.35,0.12502]
[1727856549695,11.7134,147.37,147.35,0.12502]
[1727856550293,11.7135,147.36,147.35,0.12502]
[1727856552997,11.7135,147.36,147.3,1.3771]
[1727856552998,8.32,147.36,147.3,1.3771]
[1727856553299,11.7146,147.32,147.3,4.772]
[1727856553890,8.32,147.32,147.3,4.772]
[1727856554295,11.7145,147.32,147.3,1.3771]
[1727856554801,2.6513,147.39,147.29,0.12502]
[1727856554802,8.32,147.31,147.29,0.12502]
[1727856555001,8.32,147.3,147.29,0.12502]
[1727856555595,11.7149,147.3,147.29,0.12502]
[1727856556601,3.3957,147.27,147.24,0.12518]
[1727856556796,8.32,147.26,147.24,3.52148]
[1727856557503,8.32,147.27,147.24,3.52148]
[1727856558705,8.32,147.27,147.25,3.3959]
[1727856560195,11.7156,147.27,147.24,3.52138]
[1727856560405,11.7156,147.27,147.24,0.12518]
[1727856560707,8.32,147.27,147.25,3.396]
[1727856560910,8.32,147.27,147.24,0.12518]
[1727856560911,8.32,147.26,147.24,0.12518]
[1727856561097,8.32,147.25,147.24,0.12518]
[1727856561404,11.716,147.25,147.24,0.12518]
[1727856563804,3.3957,147.27,147.24,3.52148]
[1727856564012,8.32,147.26,147.24,3.52148]
[1727856564809,8.32,147.26,147.24,0.12518]
[1727856565403,11.7158,147.26,147.24,0.12518]
[1727856566597,3.3954,147.28,147.25,3.3959]
[1727856566803,8.32,147.26,147.24,0.12518]
[1727856568209,11.716,147.26,147.24,0.12518]
[1727856568906,3.396,147.26,147.24,0.12518]
[1727856569106,11.716,147.26,147.24,0.12518]
[1727856571607,1.2783,147.31,147.24,0.12518]
[1727856571806,8.32,147.28,147.24,0.12518]
[1727856572111,8.32,147.27,147.24,0.12518]
[1727856572411,3.3958,147.26,147.24,3.52138]
[1727856572611,8.32,147.27,147.24,3.52138]
[1727856572800,11.7157,147.27,147.24,3.52138]
[1727856573006,11.7157,147.27,147.25,3.396]
[1727856573706,3.3963,147.24,147.23,0.12502]
[1727856573920,0.12502,147.29,147.17,0.12502]
[1727856574108,0.12502,147.29,147.18,3.3977]
[1727856574309,8.32,147.19,147.17,0.12502]
[1727856574909,3.3971,147.21,147.17,0.12502]
[1727856575109,8.32,147.2,147.17,0.12502]
[1727856575910,8.32,147.2,147.18,3.3976]
[1727856577007,1.387,147.27,147.19,3.3974]
[1727856577209,8.32,147.22,147.17,0.12502]
[1727856577611,8.32,147.22,147.18,3.3975]
[1727856577812,11.7169,147.22,147.17,0.12502]
[1727856578017,8.32,147.22,147.17,0.12502]
[1727856578212,8.32,147.22,147.18,3.3975]
[1727856578721,3.397,147.21,147.18,3.3975]
[1727856580409,8.32,147.2,147.18,3.3975]
[1727856581119,8.32,147.2,147.17,0.12502]
[1727856581419,8.32,147.2,147.18,3.3976]
[1727856581816,8.32,147.2,147.18,3.3977]
[1727856582016,8.32,147.2,147.17,0.12502]
[1727856582518,8.32,147.2,147.19,3.3974]
[1727856582818,8.32,147.21,147.19,3.3974]
[1727856583217,1.387,147.27,147.17,8.44502]
[1727856583417,1.387,147.27,147.22,3.3967]
[1727856583612,8.32,147.25,147.22,3.3967]
[1727856584023,11.7161,147.25,147.22,3.3967]
[1727856584412,3.3959,147.26,147.24,3.3963]
[1727856584615,8.32,147.27,147.24,3.3963]
[1727856585221,8.32,147.27,147.22,8.32]
[1727856585222,73.48502,147.29,147.22,8.32]
[1727856585522,8.32,147.28,147.22,8.32]
[1727856585720,11.7156,147.28,147.23,3.3963]
[1727856585930,11.7156,147.28,147.22,8.32]
[1727856586423,11.7156,147.28,147.25,3.396]
[1727856587724,3.3958,147.26,147.23,3.3965]
[1727856587913,3.3958,147.26,147.21,8.32]
[1727856588823,3.3958,147.26,147.23,3.3964]
[1727856589620,3.3958,147.26,147.24,3.3962]
[1727856590029,11.7158,147.27,147.24,3.3962]
[1727856590225,8.32,147.27,147.25,3.396]
[1727856590622,11.7157,147.27,147.25,3.396]
[1727856591429,3.3964,147.24,147.21,3.3968]
[1727856591729,11.7164,147.24,147.21,3.3968]
[1727856593820,3.3964,147.24,147.22,3.3967]
[1727856594025,8.32,147.26,147.21,8.32]
[1727856594324,8.32,147.28,147.24,3.3961]
[1727856594719,3.3958,147.26,147.24,3.3961]
[1727856594922,8.32,147.28,147.24,3.3961]
[1727856595121,8.32,147.26,147.22,3.3966]
[1727856595319,8.32,147.26,147.21,11.64223138]
[1727856595725,8.32,147.26,147.24,3.3961]
[1727856595933,3.3957,147.27,147.24,3.3961]
[1727856596124,3.3957,147.27,147.23,8.32]
[1727856596720,3.3957,147.27,147.24,3.3962]
[1727856597034,3.3957,147.27,147.23,8.32]
[1727856597427,3.3957,147.27,147.24,3.3962]
[1727856599537,3.3957,147.27,147.23,8.32]
[1727856599732,3.3957,147.27,147.25,3.396]
[1727856599929,3.3955,147.28,147.25,8.32]
[1727856600529,3.3955,147.28,147.26,3.3957]
[1727856600731,3.3954,147.28,147.23,8.32]
[1727856602039,0.12502,147.29,147.27,8.32]
[1727856602939,0.12502,147.29,147.28,3.3954]
[1727856603530,0.12502,147.29,147.28,11.7154]
[1727856604733,0.12502,147.35,147.28,8.32]
[1727856605038,0.12502,147.35,147.33,8.32]
[1727856605537,0.12502,147.35,147.26,8.1575]
[1727856605538,0.12502,147.35,147.34,11.714]
[1727856606131,0.12502,147.35,147.34,13.0799]
[1727856606538,0.12502,147.41,147.38,3.3928]
[1727856606745,0.12502,147.41,147.38,8.32]
[1727856607240,3.51752,147.41,147.34,2.6685]
[1727856607441,8.44502,147.41,147.36,8.32]
[1727856607640,0.12502,147.41,147.34,15.6985]
[1727856607841,3.51752,147.41,147.37,3.3931]
[1727856608946,3.3926,147.4,147.37,3.3931]
[1727856610945,0.12502,147.41,147.36,13.03]
[1727856611242,3.51742,147.41,147.38,3.3929]
[1727856611441,0.12502,147.41,147.36,13.03]
[1727856612237,3.51742,147.41,147.38,3.3929]
[1727856613346,3.51742,147.41,147.34,17.0615]
[1727856613347,0.12502,147.41,147.34,17.0615]
[1727856613546,0.12502,147.41,147.34,14.3959]
[1727856614148,3.3932,147.38,147.35,3.3936]
[1727856616741,3.3932,147.38,147.34,14.3959]
[1727856616949,3.3932,147.38,147.36,3.3935]
[1727856617745,3.3932,147.38,147.34,14.3959]
[1727856618350,3.3932,147.38,147.36,3.3935]
[1727856619344,3.3932,147.38,147.35,3.3937]
[1727856619547,3.3932,147.38,147.34,14.3959]
[1727856619548,0.12502,147.41,147.34,13.03]
[1727856619755,13.15502,147.41,147.32,93.31446561]
[1727856620045,3.3936,147.36,147.33,3.3941]
[1727856621555,3.3939,147.35,147.32,96.70876561]
[1727856621953,1.355,147.39,147.32,96.70876561]
[1727856622254,3.3933,147.37,147.32,96.70876561]
[1727856622554,1.355,147.39,147.32,96.70876561]
[1727856622854,3.3937,147.36,147.33,3.3941]
[1727856623151,1.355,147.39,147.32,13.03]
[1727856623352,1.355,147.39,147.32,16.4244]
[1727856623854,3.3939,147.35,147.32,16.4244]
[1727856624039,3.3939,147.35,147.32,13.03]
[1727856624245,3.3939,147.35,147.33,3.3941]
[1727856624940,1.355,147.39,147.32,13.03]
[1727856625145,3.3934,147.37,147.34,3.3938]
[1727856627359,3.3935,147.36,147.34,3.3938]
[1727856628057,1.355,147.39,147.32,13.03]
[1727856628254,3.3939,147.35,147.33,3.3941]
[1727856629658,3.3939,147.35,147.34,8.34]
[1727856633044,3.3934,147.37,147.34,11.7337]
[1727856633257,3.3934,147.37,147.35,8.34]
[1727856633957,3.3935,147.36,147.35,8.34]
[1727856634358,3.3937,147.35,147.34,8.34]
[1727856635353,1.355,147.39,147.34,8.34]
[1727856635558,3.3936,147.36,147.34,11.734]
[1727856636762,3.3932,147.38,147.36,3.3935]
[1727856639050,3.3932,147.38,147.35,8.34]
[1727856639051,1.2828,147.4,147.3,2.7611]
[1727856639256,8.34,147.39,147.34,8.34]
[1727856639858,3.3937,147.35,147.34,8.34]
[1727856641560,3.3933,147.37,147.34,8.34]
[1727856641859,9.6228,147.4,147.35,8.34]
[1727856641860,1.2828,147.4,147.35,8.34]
[1727856642161,3.3934,147.37,147.35,11.7336]
[1727856642460,1.2828,147.4,147.35,8.34]
[1727856643151,3.3934,147.37,147.35,11.7336]
[1727856644166,1.2828,147.4,147.35,8.34]
[1727856644360,3.3935,147.36,147.35,8.34]
[1727856646366,1.2828,147.4,147.35,8.34]
[1727856646560,3.3934,147.37,147.35,8.34]
[1727856647361,3.3934,147.37,147.35,11.7336]
[1727856652762,8.46502,147.41,147.35,8.34]
[1727856652763,0.12502,147.41,147.35,8.34]
[1727856652967,3.3927,147.4,147.38,3.3929]
[1727856653171,0.12502,147.41,147.36,8.34]
[1727856654383,3.3927,147.4,147.37,3.3931]
[1727856654584,3.3927,147.4,147.38,8.34]
[1727856655077,3.3928,147.39,147.38,8.34]
[1727856656682,0.12502,147.41,147.38,8.34]
[1727856656877,0.12502,147.41,147.4,8.34]
[1727856658375,0.12502,147.41,147.4,11.7326]
[1727856663672,9.6394,147.46,147.4,8.34]
[1727856663673,3.3918,147.44,147.4,8.34]
[1727856663982,1.47052,147.47,147.43,11.7319]
[1727856664391,3.3916,147.45,147.43,11.7319]
[1727856664684,3.3916,147.45,147.43,8.34]
[1727856665282,3.3917,147.44,147.43,8.34]
[1727856668378,3.3913,147.46,147.43,11.7317]
[1727856668785,0.12502,147.47,147.45,8.34]
[1727856668993,0.12502,147.47,147.46,8.34]
[1727856668994,3.51612,147.47,147.46,8.34]
[1727856669689,0.12502,147.47,147.46,8.34]
[1727856670285,0.12502,147.47,147.46,11.7312]
[1727856670491,0.12502,147.47,147.46,8.34]
[1727856671390,0.12502,147.47,147.44,3.3915]
[1727856671391,3.51602,147.47,147.44,3.3915]
[1727856671589,0.12502,147.47,147.42,2.6576]
[1727856671784,8.46502,147.47,147.42,1.2882]
[1727856671996,3.3918,147.44,147.42,9.6282]
[1727856672387,8.46502,147.47,147.42,9.6282]
[1727856672591,3.3919,147.43,147.42,9.6282]
[1727856672791,8.46502,147.47,147.42,9.6282]
[1727856672987,3.3918,147.44,147.42,13.0203]
[1727856677595,3.3918,147.44,147.38,1.2724]
[1727856677596,8.34,147.46,147.38,1.2724]
[1727856677800,8.34,147.46,147.41,8.34]
[1727856678199,3.3923,147.42,147.39,3.3927]
[1727856678391,3.3923,147.42,147.37,1.3576]
[1727856678392,8.34,147.44,147.37,1.3576]
[1727856678593,8.34,147.44,147.38,8.34]
[1727856678794,3.3927,147.4,147.38,11.7329]
[1727856679805,3.3927,147.4,147.39,8.34]
[1727856685112,8.34,147.42,147.35,3.51862]
[1727856685419,8.34,147.42,147.36,8.34]
[1727856686006,3.393,147.39,147.36,11.7334]
[1727856686305,8.34,147.42,147.36,11.7334]
[1727856686712,3.393,147.39,147.36,11.7334]
[1727856687212,8.34,147.42,147.36,11.7334]
[1727856687614,8.34,147.42,147.38,8.34]
[1727856687912,11.69515668,147.43,147.38,8.34]
[1727856688811,3.3932,147.38,147.37,8.34]
[1727856689816,3.3932,147.38,147.36,3.3935]
[1727856690022,3.3934,147.37,147.35,8.46502]
[1727856691119,3.3934,147.37,147.36,8.34]
[1727856691424,3.3932,147.38,147.36,8.34]
[1727856691814,3.3925,147.41,147.37,8.34]
[1727856692014,2.5847,147.45,147.4,8.34]
[1727856692224,10.9247,147.45,147.4,8.34]
[1727856692429,8.34,147.44,147.35,0.12502]
[1727856692631,8.34,147.44,147.39,8.34]
[1727856693030,1.2714,147.45,147.41,8.34]
[1727856693527,3.392,147.43,147.41,11.7322]
[1727856694029,1.2714,147.45,147.41,11.7322]
[1727856694224,3.3917,147.44,147.41,11.7322]
[1727856694425,1.2714,147.45,147.41,8.34]
[1727856694941,3.392,147.43,147.41,8.34]
[1727856695131,9.6114,147.45,147.41,8.34]
[1727856695435,9.6114,147.45,147.4,8.34]
[1727856695636,8.34,147.44,147.4,8.34]
[1727856696335,8.34,147.44,147.39,8.34]
[1727856697235,3.3928,147.4,147.39,8.34]
[1727856697535,11.67976816,147.43,147.38,8.34]